fUSD/lending_fUSD_20240118
["ID","MTS","AMOUNT","RATE_DAILY","PERIOD"]
[312040878,1705570245478,-500.0,0.00021917,2]
[312040879,1705570245488,-500.0,0.00021917,2]
[312040880,1705570245498,-2529.46,0.00021917,2]
[312040881,1705570245507,-235.71203045,0.00021917,2]
[312040882,1705570245516,-500.0,0.00021917,2]
[312040883,1705570245526,-1604.23,0.00021917,2]
[312040884,1705570245535,-500.0,0.00021917,2]
[312040885,1705570245544,-500.0,0.00021917,2]
[312040886,1705570245554,-500.0,0.00021917,2]
[312040887,1705570245563,-500.0,0.00021917,2]
[312040888,1705570245572,-500.0,0.00021917,2]
[312040889,1705570245581,-500.0,0.00021917,2]
[312040890,1705570245591,-500.0,0.00021917,2]
[312040891,1705570245600,-500.0,0.00021917,2]
[312040892,1705570245609,-506.57412129,0.00021917,2]
[312040893,1705570245618,-500.0,0.00021917,2]
[312040894,1705570245627,-500.0,0.00021917,2]
[312040895,1705570245637,-500.0,0.00021917,2]
[312040896,1705570245646,-765.62,0.00021917,5]
[312040897,1705570245655,-500.0,0.00021917,2]
[312040898,1705570245664,-500.0,0.00021917,2]
[312040899,1705570245673,-500.0,0.00021917,2]
[312040900,1705570245683,-500.0,0.00021917,2]
[312040901,1705570245692,-500.0,0.00021917,2]
[312040902,1705570245701,-687.24,0.00021917,2]
[312040903,1705570245711,-440.69866951,0.00021917,2]
[312040904,1705570245720,-500.0,0.00021917,2]
[312040905,1705570245729,-500.0,0.00021917,2]
[312040906,1705570245738,-500.0,0.00021917,2]
[312040907,1705570245747,-500.0,0.00021917,2]
[312040908,1705570245756,-500.0,0.00021917,2]
[312040909,1705570245766,-580.69714713,0.00021917,2]
[312040910,1705570245775,-500.0,0.00021917,2]
[312040911,1705570245783,-500.0,0.00021917,2]
[312040912,1705570245793,-500.0,0.00021917,2]
[312040913,1705570245802,-500.0,0.00021917,2]
[312040914,1705570245810,-500.0,0.00021917,2]
[312040915,1705570245819,-503.13627622,0.00021917,2]
[312040916,1705570245830,-500.0,0.00021917,2]
[312040917,1705570245840,-500.0,0.00021917,2]
[312040918,1705570245851,-507.51200931,0.00021917,2]
[312040919,1705570245861,-500.0,0.00021917,2]
[312040920,1705570245871,-500.0,0.00021917,2]
[312040921,1705570245880,-500.0,0.00021917,2]
[312040923,1705570245890,-500.0,0.00021917,2]
[312040925,1705570245898,-500.0,0.00021917,2]
[312040927,1705570245907,-500.0,0.00021917,2]
[312040929,1705570245916,-500.0,0.00021917,2]
[312040931,1705570245925,-500.0,0.00021917,2]
[312040933,1705570245935,-500.0,0.00021917,2]
[312040935,1705570245944,-500.0,0.00021917,2]
[312040937,1705570245953,-500.0,0.00021917,2]
[312040938,1705570245963,-500.0,0.00021917,2]
[312040939,1705570245973,-500.0,0.00021917,2]
[312040940,1705570245983,-1741.77,0.00021917,2]
[312040941,1705570245992,-500.0,0.00021917,2]
[312040942,1705570246001,-500.0,0.00021917,2]
[312040943,1705570246010,-500.0,0.00021917,2]
[312040944,1705570246019,-500.0,0.00021917,2]
[312040945,1705570246028,-895.3,0.00021917,2]
[312040946,1705570246037,-643.06,0.00021917,2]
[312040947,1705570246046,-503.96069866,0.00021917,2]
[312040948,1705570246055,-500.0,0.00021917,2]
[312040949,1705570246063,-991.2,0.00021917,2]
[312040950,1705570246072,-500.0,0.00021917,2]
[312040951,1705570246081,-500.0,0.00021917,2]
[312040952,1705570246090,-522.91270545,0.00021917,2]
[312040953,1705570246099,-500.0,0.00021917,2]
[312040954,1705570246108,-500.0,0.00021917,2]
[312040955,1705570246116,-500.0,0.00021917,2]
[312040956,1705570246125,-250.0,0.00021918,2]
[312040957,1705570246134,-152.41,0.00021935,2]
[312040958,1705570246143,-591.0460111,0.00021972,2]
[312040959,1705570246152,-157.89,0.00021986,2]
[312040960,1705570246161,-150.0,0.00021997,2]
[312040961,1705570246170,-352.02,0.00021999,2]
[312040962,1705570246179,-207.82039875,0.00022,2]
[312040963,1705570246187,-2250.0,0.00022,3]
[312040964,1705570246196,-156.2,0.00022008,2]
[312040965,1705570246205,-296.06,0.00022028,2]
[312040966,1705570246214,-154.15,0.00022044,2]
[312040967,1705570246223,-613.01,0.00022055,2]
[312040968,1705570246231,-591.0460111,0.00022126,2]
[312040969,1705570246240,-152.41,0.00022154,2]
[312040970,1705570246249,-518.69957151,0.00022189,3]
[312040971,1705570246258,-260.50122287,0.00022189,2]
[312040972,1705570246267,-6451.51336143,0.0002219,2]
[312040973,1705570246286,-500.0,0.0002219,2]
[312040974,1705570246297,-500.0,0.0002219,2]
[312040975,1705570246306,-500.0,0.0002219,2]
[312040976,1705570246315,-222.92,0.00022191,2]
[312040977,1705570246324,-644.84387051,0.00022191,2]
[312040978,1705570246334,-500.0,0.00022191,2]
[312040979,1705570246343,-500.0,0.00022191,2]
[312040980,1705570246353,-500.0,0.00022191,2]
[312040981,1705570246362,-532.56,0.00022191,2]
[312040982,1705570246371,-500.0,0.00022191,2]
[312040983,1705570246381,-500.0,0.00022191,2]
[312040984,1705570246391,-500.0,0.00022191,2]
[312040985,1705570246401,-610.42,0.00022191,2]
[312040986,1705570246410,-278.31,0.00022191,2]
[312040987,1705570246420,-500.0,0.00022191,2]
[312040988,1705570246430,-500.0,0.00022191,2]
[312040989,1705570246442,-510.25775121,0.00022191,2]
[312040990,1705570246453,-500.0,0.00022191,2]
[312040991,1705570246462,-500.0,0.00022191,2]
[312040992,1705570246472,-500.0,0.00022191,2]
[312040993,1705570246482,-500.0,0.00022191,2]
[312040994,1705570246491,-505.69550936,0.00022191,2]
[312040995,1705570246500,-500.0,0.00022191,2]
[312040996,1705570246510,-500.0,0.00022191,2]
[312040997,1705570246520,-500.0,0.00022191,2]
[312040998,1705570246530,-500.0,0.00022191,2]
[312040999,1705570246539,-500.0,0.00022191,2]
[312041000,1705570246549,-500.0,0.00022191,2]
[312041001,1705570246558,-500.0,0.00022191,2]
[312041002,1705570246568,-518.99830087,0.00022191,2]
[312041003,1705570246577,-380.8,0.00022191,2]
[312041004,1705570246587,-500.0,0.00022191,2]
[312041005,1705570246597,-500.0,0.00022191,2]
[312041006,1705570246606,-500.0,0.00022191,2]
[312041007,1705570246615,-500.0,0.00022191,2]
[312041008,1705570246624,-500.0,0.00022191,2]
[312041009,1705570246633,-522.81303383,0.00022191,2]
[312041010,1705570246643,-500.0,0.00022191,2]
[312041011,1705570246652,-388.27017907,0.00022191,2]
[312041012,1705570246662,-500.0,0.00022191,2]
[312041013,1705570246672,-464.64,0.00022191,2]
[312041014,1705570246682,-500.0,0.00022191,2]
[312041015,1705570246692,-500.0,0.00022191,2]
[312041016,1705570246702,-500.0,0.00022191,2]
[312041017,1705570246712,-403.07017658,0.00022191,2]
[312041018,1705570246722,-500.0,0.00022191,2]
[312041019,1705570246731,-500.0,0.00022191,2]
[312041020,1705570246740,-285.62729271,0.00022191,2]
[312041021,1705570246749,-500.0,0.00022191,2]
[312041022,1705570246759,-500.0,0.00022191,2]
[312041023,1705570246768,-500.0,0.00022191,2]
[312041024,1705570246782,-433.77,0.00022191,2]
[312041025,1705570246791,-500.0,0.00022191,2]
[312041026,1705570246801,-500.0,0.00022191,2]
[312041027,1705570246810,-504.79986645,0.00022191,2]
[312041028,1705570246819,-500.0,0.00022191,2]
[312041029,1705570246829,-500.0,0.00022191,2]
[312041030,1705570246838,-194.66,0.00022191,2]
[312041031,1705570246848,-500.0,0.00022191,2]
[312041032,1705570246857,-500.0,0.00022191,2]
[312041033,1705570246867,-500.0,0.00022191,2]
[312041034,1705570246876,-500.0,0.00022191,2]
[312041035,1705570246886,-500.0,0.00022191,2]
[312041036,1705570246897,-288.20915639,0.00022191,2]
[312041037,1705570246906,-500.0,0.00022191,2]
[312041038,1705570246915,-500.0,0.00022191,2]
[312041039,1705570246924,-500.0,0.00022191,2]
[312041040,1705570246933,-500.0,0.00022191,2]
[312041041,1705570246942,-500.0,0.00022191,2]
[312041042,1705570246951,-500.0,0.00022191,2]
[312041043,1705570246960,-500.0,0.00022191,2]
[312041044,1705570246969,-500.0,0.00022191,2]
[312041045,1705570246979,-500.0,0.00022191,2]
[312041046,1705570246988,-500.0,0.00022191,2]
[312041047,1705570246997,-500.0,0.00022191,2]
[312041048,1705570247007,-500.0,0.00022191,2]
[312041049,1705570247016,-500.0,0.00022191,2]
[312041050,1705570247026,-500.0,0.00022191,2]
[312041051,1705570247035,-500.0,0.00022191,2]
[312041052,1705570247044,-500.0,0.00022191,2]
[312041053,1705570247053,-509.59,0.00022191,2]
[312041054,1705570247062,-386.53,0.00022191,2]
[312041055,1705570247071,-500.0,0.00022191,2]
[312041056,1705570247081,-500.0,0.00022191,2]
[312041057,1705570247091,-597.09498877,0.00022191,2]
[312041058,1705570247099,-500.0,0.00022191,2]
[312041059,1705570247109,-500.0,0.00022191,2]
[312041060,1705570247121,-2943.43,0.00022191,2]
[312041061,1705570247132,-506.71315777,0.00022191,2]
[312041062,1705570247144,-500.0,0.00022191,2]
[312041063,1705570247154,-500.0,0.00022191,2]
[312041064,1705570247165,-500.0,0.00022191,2]
[312041065,1705570247175,-500.0,0.00022191,2]
[312041066,1705570247186,-500.0,0.00022191,2]
[312041067,1705570247196,-500.0,0.00022191,2]
[312041068,1705570247206,-500.0,0.00022191,2]
[312041069,1705570247216,-500.0,0.00022191,2]
[312041070,1705570247226,-273.36759124,0.00022191,2]
[312041071,1705570247236,-529.36,0.00022191,2]
[312041072,1705570247246,-500.0,0.00022191,2]
[312041073,1705570247258,-500.0,0.00022191,2]
[312041074,1705570247270,-500.0,0.00022191,2]
[312041075,1705570247280,-158.23018255,0.00022191,2]
[312041076,1705570247292,-500.0,0.00022191,2]
[312041077,1705570247302,-500.0,0.00022191,2]
[312041078,1705570247312,-500.0,0.00022191,2]
[312041079,1705570247323,-500.0,0.00022191,2]
[312041080,1705570247335,-400.18,0.00022191,2]
[312041081,1705570247346,-500.0,0.00022191,2]
[312041082,1705570247356,-500.0,0.00022191,2]
[312041083,1705570247366,-500.0,0.00022191,2]
[312041084,1705570247378,-500.0,0.00022191,2]
[312041085,1705570247390,-500.0,0.00022191,2]
[312041086,1705570247400,-500.0,0.00022191,2]
[312041087,1705570247410,-500.0,0.00022191,2]
[312041088,1705570247420,-500.0,0.00022191,2]
[312041089,1705570247430,-212.79966531,0.00022191,2]
[312041090,1705570247444,-500.0,0.00022191,2]
[312041091,1705570247454,-500.0,0.00022191,2]
[312041092,1705570247467,-500.0,0.00022191,2]
[312041093,1705570247477,-500.0,0.00022191,2]
[312041094,1705570247488,-500.0,0.00022191,2]
[312041095,1705570247498,-839.42,0.00022191,2]
[312041096,1705570247509,-500.0,0.00022191,2]
[312041097,1705570247520,-500.0,0.00022191,2]
[312041098,1705570247531,-500.0,0.00022191,2]
[312041099,1705570247541,-500.0,0.00022191,2]
[312041100,1705570247552,-500.0,0.00022191,2]
[312041101,1705570247562,-510.32,0.00022191,2]
[312041102,1705570247572,-783.3,0.00022191,2]
[312041103,1705570247582,-500.0,0.00022191,2]
[312041104,1705570247592,-500.0,0.00022191,2]
[312041105,1705570247602,-500.0,0.00022191,2]
[312041106,1705570247612,-475.51063344,0.00022191,2]
[312041107,1705570247623,-500.0,0.00022191,2]
[312041108,1705570247633,-500.0,0.00022191,2]
[312041109,1705570247643,-500.0,0.00022191,2]
[312041110,1705570247653,-500.0,0.00022191,2]
[312041111,1705570247663,-500.0,0.00022191,2]
[312041112,1705570247673,-500.0,0.00022191,2]
[312041113,1705570247683,-500.0,0.00022191,2]
[312041114,1705570247693,-500.0,0.00022191,2]
[312041115,1705570247704,-501.67,0.00022191,2]
[312041116,1705570247713,-500.0,0.00022191,2]
[312041117,1705570247723,-500.0,0.00022191,2]
[312041118,1705570247733,-521.7,0.00022191,2]
[312041119,1705570247743,-500.0,0.00022191,2]
[312041120,1705570247753,-500.0,0.00022191,2]
[312041121,1705570247762,-500.0,0.00022191,2]
[312041122,1705570247773,-1936.38,0.00022191,2]
[312041123,1705570247782,-2503.52,0.00022191,2]
[312041124,1705570247792,-861.51,0.00022191,2]
[312041125,1705570247802,-500.0,0.00022191,2]
[312041126,1705570247812,-952.25,0.00022191,2]
[312041127,1705570247822,-3166.47,0.00022191,2]
[312041128,1705570247831,-687.8,0.00022191,2]
[312041129,1705570247841,-500.0,0.00022191,2]
[312041130,1705570247851,-500.0,0.00022191,2]
[312041131,1705570247861,-1531.66,0.00022191,2]
[312041132,1705570247871,-5606.99,0.00022191,2]
[312041133,1705570247881,-500.0,0.00022191,2]
[312041134,1705570247893,-711.36,0.00022191,2]
[312041135,1705570247902,-661.01,0.00022191,2]
[312041136,1705570247912,-2024.63,0.00022191,2]
[312041137,1705570247922,-2669.11,0.00022191,2]
[312041138,1705570247931,-500.0,0.00022191,2]
[312041139,1705570247941,-490.58914663,0.00022191,2]
[312041140,1705570247951,-500.0,0.00022191,2]
[312041141,1705570247961,-500.0,0.00022191,2]
[312041142,1705570247971,-500.0,0.00022191,2]
[312041143,1705570247981,-342.68,0.00022191,2]
[312041144,1705570247990,-1410.35,0.00022191,2]
[312041145,1705570248001,-1703.95,0.00022191,2]
[312041146,1705570248010,-500.0,0.00022191,2]
[312041147,1705570248020,-1153.6,0.00022191,2]
[312041148,1705570248029,-805.75,0.00022191,2]
[312041149,1705570248039,-500.0,0.00022191,2]
[312041150,1705570248048,-2203.97,0.00022191,2]
[312041151,1705570248058,-11753.95,0.00022191,2]
[312041152,1705570248068,-681.37,0.00022191,2]
[312041153,1705570248077,-500.0,0.00022191,2]
[312041154,1705570248087,-645.55,0.00022191,2]
[312041155,1705570248096,-500.0,0.00022191,2]
[312041156,1705570248106,-1284.33,0.00022191,2]
[312041157,1705570248123,-500.0,0.00022191,2]
[312041158,1705570248136,-500.0,0.00022191,2]
[312041159,1705570248147,-1411.4,0.00022191,2]
[312041160,1705570248157,-533.91,0.00022191,2]
[312041161,1705570248168,-2336.78,0.00022191,2]
[312041162,1705570248178,-500.0,0.00022191,2]
[312041163,1705570248222,-871.0,0.00022191,2]
[312041164,1705570248234,-1308.46,0.00022191,2]
[312041165,1705570248246,-500.0,0.00022191,2]
[312041166,1705570248256,-500.0,0.00022191,2]
[312041167,1705570248268,-500.0,0.00022191,2]
[312041168,1705570248281,-500.0,0.00022191,2]
[312041169,1705570248292,-536.04,0.00022191,2]
[312041170,1705570248302,-500.0,0.00022191,2]
[312041171,1705570248314,-500.0,0.00022191,2]
[312041172,1705570248324,-500.0,0.00022191,2]
[312041173,1705570248334,-500.0,0.00022191,2]
[312041174,1705570248345,-516.99439985,0.00022191,2]
[312041175,1705570248356,-599.12,0.00022191,2]
[312041176,1705570248366,-1422.82,0.00022191,2]
[312041177,1705570248376,-3897.63,0.00022191,2]
[312041178,1705570248386,-2589.69,0.00022191,2]
[312041179,1705570248397,-986.72,0.00022191,2]
[312041180,1705570248408,-500.0,0.00022191,2]
[312041181,1705570248418,-500.0,0.00022191,2]
[312041182,1705570248428,-500.0,0.00022191,2]
[312041183,1705570248442,-500.0,0.00022191,2]
[312041184,1705570248453,-1305.5,0.00022191,2]
[312041185,1705570248463,-500.0,0.00022191,2]
[312041186,1705570248474,-540.58,0.00022191,2]
[312041187,1705570248485,-500.0,0.00022191,2]
[312041188,1705570248495,-564.2,0.00022191,2]
[312041189,1705570248505,-1041.6,0.00022191,2]
[312041190,1705570248516,-500.0,0.00022191,2]
[312041191,1705570248527,-2388.38,0.00022191,2]
[312041192,1705570248537,-175.41,0.00022191,2]
[312041193,1705570248546,-606.99,0.00022191,2]
[312041194,1705570248556,-1803.11,0.00022191,2]
[312041195,1705570248566,-564.35,0.00022191,2]
[312041196,1705570248576,-500.0,0.00022191,2]
[312041197,1705570248586,-500.0,0.00022191,2]
[312041198,1705570248597,-757.22,0.00022191,2]
[312041199,1705570248607,-750.03,0.00022191,2]
[312041200,1705570248618,-500.0,0.00022191,2]
[312041201,1705570248628,-500.0,0.00022191,2]
[312041202,1705570248638,-511.53012117,0.00022191,2]
[312041203,1705570248648,-500.0,0.00022191,2]
[312041204,1705570248658,-500.0,0.00022191,2]
[312041205,1705570248669,-770.03,0.00022191,2]
[312041206,1705570248679,-500.0,0.00022191,2]
[312041207,1705570248689,-500.0,0.00022191,2]
[312041208,1705570248698,-1176.22,0.00022191,2]
[312041209,1705570248708,-539.9,0.00022191,2]
[312041210,1705570248718,-500.0,0.00022191,2]
[312041211,1705570248728,-368.93,0.00022191,2]
[312041212,1705570248738,-644.14,0.00022191,2]
[312041213,1705570248747,-596.95,0.00022191,2]
[312041214,1705570248757,-1276.75,0.00022191,2]
[312041215,1705570248768,-500.0,0.00022191,2]
[312041216,1705570248778,-500.0,0.00022191,2]
[312041217,1705570248787,-858.83,0.00022191,2]
[312041218,1705570248797,-1523.25,0.00022191,2]
[312041219,1705570248806,-1070.85,0.00022191,2]
[312041220,1705570248816,-500.0,0.00022191,2]
[312041221,1705570248826,-500.0,0.00022191,2]
[312041222,1705570248835,-500.0,0.00022191,2]
[312041223,1705570248845,-286.25110628,0.00022191,2]
[312041224,1705570248855,-500.0,0.00022191,2]
[312041225,1705570248865,-7375.31,0.00022191,2]
[312041226,1705570248874,-383.64766056,0.00022191,2]
[312041227,1705570248884,-500.0,0.00022191,2]
[312041228,1705570248895,-783.2,0.00022191,2]
[312041229,1705570248905,-500.0,0.00022191,2]
[312041230,1705570248915,-701.23,0.00022191,2]
[312041231,1705570248925,-3675.59,0.00022191,2]
[312041232,1705570248935,-500.0,0.00022191,2]
[312041233,1705570248945,-536.16,0.00022191,2]
[312041234,1705570248954,-614.04,0.00022191,2]
[312041235,1705570248964,-337.52067244,0.00022191,2]
[312041236,1705570248973,-500.0,0.00022191,2]
[312041237,1705570248983,-2031.02,0.00022191,2]
[312041238,1705570248993,-500.0,0.00022191,2]
[312041239,1705570249003,-528.21,0.00022191,2]
[312041240,1705570249013,-500.0,0.00022191,2]
[312041241,1705570249023,-634.42,0.00022191,2]
[312041242,1705570249032,-500.0,0.00022191,2]
[312041243,1705570249041,-1285.87,0.00022191,2]
[312041244,1705570249051,-500.0,0.00022191,2]
[312041245,1705570249060,-500.0,0.00022191,2]
[312041246,1705570249070,-499.06840117,0.00022191,2]
[312041247,1705570249080,-500.0,0.00022191,2]
[312041248,1705570249090,-643.92,0.00022191,2]
[312041249,1705570249100,-500.0,0.00022191,5]
[312041250,1705570249110,-755.21,0.00022191,2]
[312041251,1705570249120,-500.0,0.00022191,2]
[312041252,1705570249129,-647.11,0.00022191,2]
[312041253,1705570249139,-500.0,0.00022191,2]
[312041254,1705570249149,-500.0,0.00022191,2]
[312041255,1705570249158,-554.02,0.00022191,2]
[312041256,1705570249168,-1064.31,0.00022191,2]
[312041257,1705570249178,-536.97,0.00022191,2]
[312041258,1705570249187,-225.31,0.00022191,2]
[312041259,1705570249197,-510.42691432,0.00022191,2]
[312041260,1705570249206,-533.5,0.00022191,2]
[312041261,1705570249216,-1120.68,0.00022191,2]
[312041262,1705570249226,-500.0,0.00022191,2]
[312041263,1705570249235,-504.06778232,0.00022191,2]
[312041264,1705570249245,-500.0,0.00022191,2]
[312041265,1705570249255,-500.0,0.00022191,2]
[312041266,1705570249265,-500.0,0.00022191,2]
[312041267,1705570249275,-967.22,0.00022191,2]
[312041268,1705570249284,-506.98,0.00022191,2]
[312041269,1705570249294,-500.0,0.00022191,2]
[312041270,1705570249303,-1048.75,0.00022191,2]
[312041271,1705570249313,-842.96,0.00022191,2]
[312041272,1705570249323,-1133.26,0.00022191,2]
[312041273,1705570249333,-500.0,0.00022191,2]
[312041274,1705570249343,-312.54444629,0.00022191,2]
[312041275,1705570249354,-913.23,0.00022191,2]
[312041276,1705570249365,-500.0,0.00022191,2]
[312041277,1705570249378,-1619.86,0.00022191,2]
[312041278,1705570249644,-500.0,0.00022191,2]
[312041279,1705570249663,-823.86,0.00022191,2]
[312041280,1705570249673,-500.0,0.00022191,2]
[312041281,1705570249683,-2529.46,0.00022191,2]
[312041282,1705570249692,-500.0,0.00022191,2]
[312041283,1705570249701,-172.42,0.00022191,2]
[312041284,1705570249710,-1604.23,0.00022191,2]
[312041285,1705570249719,-500.0,0.00022191,2]
[312041286,1705570249729,-507.91515946,0.00022191,2]
[312041287,1705570249738,-500.0,0.00022191,2]
[312041288,1705570249747,-500.0,0.00022191,2]
[312041289,1705570249756,-513.16980302,0.00022191,2]
[312041290,1705570249765,-500.0,0.00022191,2]
[312041291,1705570249775,-500.0,0.00022191,2]
[312041292,1705570249784,-765.62,0.00022191,5]
[312041293,1705570249794,-500.0,0.00022191,2]
[312041294,1705570249804,-500.0,0.00022191,2]
[312041295,1705570249813,-500.0,0.00022191,2]
[312041296,1705570249822,-687.24,0.00022191,2]
[312041297,1705570249832,-500.0,0.00022191,2]
[312041298,1705570249844,-500.0,0.00022191,2]
[312041299,1705570249853,-500.0,0.00022191,2]
[312041300,1705570249863,-500.0,0.00022191,2]
[312041301,1705570249874,-500.0,0.00022191,2]
[312041302,1705570249884,-500.0,0.00022191,2]
[312041303,1705570249894,-524.52,0.00022191,2]
[312041304,1705570249905,-506.25985988,0.00022191,2]
[312041305,1705570249915,-500.0,0.00022191,2]
[312041306,1705570249927,-174.19,0.00022191,2]
[312041307,1705570249938,-500.0,0.00022191,2]
[312041308,1705570249949,-500.0,0.00022191,2]
[312041309,1705570249958,-500.0,0.00022191,2]
[312041310,1705570249968,-500.0,0.00022191,2]
[312041311,1705570249977,-500.0,0.00022191,2]
[312041312,1705570249986,-500.0,0.00022191,2]
[312041313,1705570249998,-500.0,0.00022191,2]
[312041314,1705570250009,-154.39765918,0.00022191,2]
[312041315,1705570250018,-500.0,0.00022191,2]
[312041316,1705570250027,-500.0,0.00022191,2]
[312041317,1705570250036,-1741.77,0.00022191,2]
[312041318,1705570250046,-500.0,0.00022191,2]
[312041319,1705570250055,-510.62067137,0.00022191,2]
[312041320,1705570250065,-500.0,0.00022191,2]
[312041321,1705570250074,-895.3,0.00022191,2]
[312041322,1705570250084,-500.0,0.00022191,2]
[312041323,1705570250094,-991.2,0.00022191,2]
[312041324,1705570250103,-500.0,0.00022191,2]
[312041325,1705570250113,-500.0,0.00022191,2]
[312041326,1705570250123,-418.24,0.00022192,2]
[312041327,1705570250132,-408.4,0.00022192,2]
[312041328,1705570250141,-207.0,0.00022196,2]
[312041329,1705570250151,-500.0,0.00022199,2]
[312041330,1705570250160,-401.0,0.00022199,2]
[312041331,1705570250169,-25420.0,0.000222,2]
[312041332,1705570250179,-2999.0,0.000222,2]
[312041333,1705570250187,-995.033946,0.00022216,2]
[312041334,1705570250198,-591.0460111,0.00022281,2]
[312041335,1705570250207,-1000.0,0.000223,2]
[312041336,1705570250216,-156.2,0.00022358,2]
[312041337,1705570250225,-500.0,0.00022373,2]
[312041338,1705570250234,-152.41,0.00022374,2]
[312041339,1705570250244,-1064.0,0.000224,2]
[312041340,1705570250253,-5575.0,0.0002243,2]
[312041341,1705570250263,-8092.0,0.0002243,2]
[312041342,1705570250272,-19308.6,0.0002243,2]
[312041343,1705570250281,-3067.673,0.0002243,2]
[312041344,1705570250291,-7349.0,0.0002243,2]
[312041345,1705570250301,-1234.0,0.0002243,2]
[312041346,1705570250311,-1253.0,0.0002243,2]
[312041347,1705570250321,-1029.0,0.0002243,2]
[312041348,1705570250330,-1934.0,0.0002243,2]
[312041349,1705570250340,-476.788,0.0002243,2]
[312041350,1705570250349,-591.0460111,0.00022436,2]
[312041351,1705570250358,-3922.85,0.00022445,2]
[312041352,1705570250367,-155.37660646,0.00022463,2]
[312041353,1705570250377,-206.51576742,0.00022464,2]
[312041354,1705570250386,-500.0,0.00022464,2]
[312041355,1705570250398,-150.0,0.00022464,2]
[312041356,1705570250407,-500.0,0.00022464,2]
[312041357,1705570250416,-500.0,0.00022465,2]
[312041358,1705570250427,-500.0,0.00022465,2]
[312041359,1705570250438,-500.0,0.00022465,2]
[312041360,1705570250449,-493.97654577,0.00022465,2]
[312041361,1705570250458,-514.43329017,0.00022465,2]
[312041362,1705570250469,-610.42,0.00022465,2]
[312041363,1705570250478,-500.0,0.00022465,2]
[312041364,1705570250488,-500.0,0.00022465,2]
[312041365,1705570250498,-500.0,0.00022465,2]
[312041366,1705570250507,-500.0,0.00022465,2]
[312041367,1705570250517,-500.0,0.00022465,2]
[312041368,1705570250526,-474.56,0.00022465,2]
[312041369,1705570250536,-334.97,0.00022465,2]
[312041370,1705570250545,-629.14575559,0.00022465,2]
[312041371,1705570250555,-500.0,0.00022465,2]
[312041372,1705570250564,-234.44045363,0.00022465,2]
[312041373,1705570250574,-195.6,0.00022465,2]
[312041374,1705570250583,-202.93454746,0.00022465,2]
[312041375,1705570250593,-333.10708057,0.00022465,2]
[312041376,1705570250602,-500.0,0.00022465,2]
[312041377,1705570250612,-500.0,0.00022465,2]
[312041378,1705570250621,-500.0,0.00022465,2]
[312041379,1705570250631,-500.0,0.00022465,2]
[312041380,1705570250640,-500.0,0.00022465,2]
[312041381,1705570250649,-270.2,0.00022465,2]
[312041382,1705570250658,-500.0,0.00022465,2]
[312041383,1705570250668,-500.0,0.00022465,2]
[312041384,1705570250677,-500.0,0.00022465,2]
[312041385,1705570250686,-500.0,0.00022465,2]